Workbook

Sheet Sheet1
B1: Exemplo 5 - Simulação (NPA escolhidosde antemão)
B3: Chegada Exponencial de média | E3: 15
B4: Serviço Uniforme de min - máx | E4: 10 | F4: 15
B6: Nº Clientes | C6: 5
G7: Próx. | I7: Próx. | J7: Próxima | K7: Próxima | L7: Próximo | M7: Tempo | O7: NPA | P7: NPA | Q7: Nº | R7: Intervalo | S7: Tempo | T7: Tempo | U7: Tempo | V7: Tempo | W7: Tempo
B8: Cliente Ch. | C8: Cliente Nº | D8: T. Simul. | E8: Nº Clientes | F8: NPA Ch | G8: Int. CH | H8: NPA Par | I8: T. Serv. | J8: Chegada | K8: Partida | L8: Acontec. | M8: Espera | O8: Chegadas | P8: Seviço | Q8: Clientes | R8: Chegadas | S8: Serviço | T8: Chegada | U8: Partida | V8: Fila | W8: Sistema
B9: 1 | C9: =SUM($B$9:B9) -> 1 | D9: 0 | E9: 1 | F9: 0.059 | G9: =-$E$3*LN(F9) -> 42.45326753 | H9: 0.673 | I9: =$E$4+H9*($F$4-$E$4) -> 13.365 | J9: =+D9+G9 -> 42.45326753 | K9: =+D9+I9 -> 13.365 | L9: =IF(J9<K9,"chegada","partida") -> partida | M9: =IF(E9<2,0,(E9-1)*(D10-D9)) -> 0 | O9: 0.059 | P9: 0.673 | Q9: 1 | R9: =-$E$3*LN(O9) -> 42.45326753 | S9: =+$E$4+P9*($F$4-$E$4) -> 13.365 | T9: 0 | U9: =+T9+S9 -> 13.365 | V9: =+U9-T9-S9 -> 0 | W9: =+U9-T9 -> 13.365
B10: =IF(SUM(E9:L9)=0,0,IF(L9="partida",0,1)) -> 0 | C10: =SUM($B$9:B10) -> 1 | D10: =IF(L9="partida",K9,J9) -> 13.365 | E10: =IF(L9="partida",E9-1,E9+1) -> 0 | F10: =IF(L9="partida", 0,RAND()) -> 0 | G10: =IF(F10=0,0,-$E$3*LN(F10)) -> 0 | H10: =IF(L9="partida",IF(E10=0,0,RAND()),IF(E10>1,0,RAND())) -> 0 | I10: =IF(H10=0,0,$E$4+H10*($F$4-$E$4)) -> 0 | J10: =IF(C10=$C$6,0,+J9+G10) -> 42.45326753 | K10: =IF(D10<K9,K9,IF(I10=0,0,D10+I10)) -> 0 | L10: =IF(C10<$C$6,IF(C10=$C$6,"partida",IF(K10=0,"chegada",IF(J10<K10,"chegada","partida"))),IF(E10=0,0,IF(C10=$C$6,"partida",IF(K10=0,"chegada",IF(J10<K10,"chegada","partida"))))) -> chegada | M10: 0 | O10: 0.48 | P10: 0.949 | Q10: =+Q9+1 -> 2 | R10: =-$E$3*LN(O10) -> 11.00953763 | S10: =+$E$4+P10*($F$4-$E$4) -> 14.745 | T10: =+R9+T9 -> 42.45326753 | U10: =MAX(T10,U9)+S10 -> 57.19826753 | V10: =+U10-T10-S10 -> 0 | W10: =+U10-T10 -> 14.745
B11: 1 | C11: =SUM($B$9:B11) -> 2 | D11: 42.45326753 | E11: =IF(L10="partida",E10-1,E10+1) -> 1 | F11: =IF(L10="partida", 0,0.48) -> 0.48 | G11: =IF(F11=0,0,-$E$3*LN(F11)) -> 11.00953763 | H11: =IF(L10="partida",IF(E11=0,0,0.949),IF(E11>1,0,0.949)) -> 0.949 | I11: =IF(H11=0,0,$E$4+H11*($F$4-$E$4)) -> 14.745 | J11: 53.46280515 | K11: =IF(D11<K10,K10,IF(I11=0,0,D11+I11)) -> 57.19826753 | L11: chegada | M11: 0 | O11: 0.614 | P11: 0.593 | Q11: =+Q10+1 -> 3 | R11: =-$E$3*LN(O11) -> 7.316405263 | S11: =+$E$4+P11*($F$4-$E$4) -> 12.965 | T11: =+R10+T10 -> 53.46280515 | U11: =MAX(T11,U10)+S11 -> 70.16326753 | V11: =+U11-T11-S11 -> 3.735462374 | W11: =+U11-T11 -> 16.70046237
B12: 1 | C12: =SUM($B$9:B12) -> 3 | D12: 53.46280515 | E12: =IF(L11="partida",E11-1,E11+1) -> 2 | F12: =IF(L11="partida", 0,0.614) -> 0.614 | G12: 7.316405263 | H12: =IF(L11="partida",IF(E12=0,0,RAND()),IF(E12>1,0,RAND())) -> 0 | I12: =IF(H12=0,0,$E$4+H12*($F$4-$E$4)) -> 0 | J12: 60.77921041 | K12: 57.19826753 | L12: partida | M12: 3.735462374 | O12: 0.934 | P12: 0.178 | Q12: =+Q11+1 -> 4 | R12: =-$E$3*LN(O12) -> 1.024182611 | S12: =+$E$4+P12*($F$4-$E$4) -> 10.89 | T12: =+R11+T11 -> 60.77921041 | U12: =MAX(T12,U11)+S12 -> 81.05326753 | V12: =+U12-T12-S12 -> 9.384057111 | W12: =+U12-T12 -> 20.27405711
B13: 0 | C13: =SUM($B$9:B13) -> 3 | D13: 57.19826753 | E13: =IF(L12="partida",E12-1,E12+1) -> 1 | F13: =IF(L12="partida", 0,RAND()) -> 0 | G13: 0 | H13: =IF(L12="partida",IF(E13=0,0,0.593),IF(E13>1,0,0.593)) -> 0.593 | I13: 12.965 | J13: 60.77921041 | K13: 70.16326753 | L13: chegada | M13: 0 | O13: 0.238 | P13: 0.347 | Q13: =+Q12+1 -> 5 | R13: =-$E$3*LN(O13) -> 21.53226908 | S13: =+$E$4+P13*($F$4-$E$4) -> 11.735 | T13: =+R12+T12 -> 61.80339303 | U13: =MAX(T13,U12)+S13 -> 92.78826753 | V13: =+U13-T13-S13 -> 19.2498745 | W13: =+U13-T13 -> 30.9848745
B14: 1 | C14: =SUM($B$9:B14) -> 4 | D14: 60.77921041 | E14: =IF(L13="partida",E13-1,E13+1) -> 2 | F14: =IF(L13="partida", 0,0.934) -> 0.934 | G14: 1.024182611 | H14: =IF(L13="partida",IF(E14=0,0,RAND()),IF(E14>1,0,RAND())) -> 0 | I14: 0 | J14: 61.80339303 | K14: 70.16326753 | L14: chegada | M14: 1.024182611
B15: 1 | C15: =SUM($B$9:B15) -> 5 | D15: 61.80339303 | E15: =IF(L14="partida",E14-1,E14+B15) -> 3 | F15: =IF(C15=$C$6,0, RAND()) -> 0 | G15: 0 | H15: =IF(L14="partida",IF(E15=0,0,RAND()),IF(E15>1,0,RAND())) -> 0 | I15: 0 | J15: 0 | K15: 70.16326753 | L15: partida | M15: 16.719749
B16: 0 | C16: =SUM($B$9:B16) -> 5 | D16: 70.16326753 | E16: =IF(L15="partida",E15-1,E15+B16) -> 2 | F16: 0 | G16: 0 | H16: =IF(L15="partida",IF(E16=0,0,0.178),IF(E16>1,0,0.178)) -> 0.178 | I16: 10.89 | J16: 0 | K16: 81.05326753 | L16: =IF(C16<$C$6,IF(C16=$C$6,"partida",IF(K16=0,"chegada",IF(J16<K16,"chegada","partida"))),IF(E16=0,0,IF(C16=$C$6,"partida",IF(K16=0,"chegada",IF(J16<K16,"chegada","partida"))))) -> partida | M16: 10.89
B17: 0 | C17: =SUM($B$9:B17) -> 5 | D17: 81.05326753 | E17: 1 | F17: 0 | G17: 0 | H17: =IF(L16="partida",IF(E17=0,0,0.347),IF(E17>1,0,0.347)) -> 0.347 | I17: 11.735 | J17: 0 | K17: 92.78826753 | L17: =IF(C17<$C$6,IF(C17=$C$6,"partida",IF(K17=0,"chegada",IF(J17<K17,"chegada","partida"))),IF(E17=0,0,IF(C17=$C$6,"partida",IF(K17=0,"chegada",IF(J17<K17,"chegada","partida"))))) -> partida | M17: 0
B18: 0 | C18: =SUM($B$9:B18) -> 5 | D18: 92.78826753 | E18: 0 | F18: 0 | G18: 0 | H18: =IF(L17=0,0,IF(L17="partida",IF(E18=0,0,RAND()),IF(E18>1,0,RAND()))) -> 0 | I18: 0 | J18: 0 | K18: 0 | L18: =IF(C18<$C$6,IF(C18=$C$6,"partida",IF(K18=0,"chegada",IF(J18<K18,"chegada","partida"))),IF(E18=0,0,IF(C18=$C$6,"partida",IF(K18=0,"chegada",IF(J18<K18,"chegada","partida"))))) -> 0 | M18: 0
B19: 0 | C19: =SUM($B$9:B19) -> 5 | D19: 0 | E19: 0 | F19: 0 | G19: 0 | H19: =IF(L18=0,0,IF(L18="partida",IF(E19=0,0,RAND()),IF(E19>1,0,RAND()))) -> 0 | I19: 0 | J19: 0 | K19: 0 | L19: =IF(C19<$C$6,IF(C19=$C$6,"partida",IF(K19=0,"chegada",IF(J19<K19,"chegada","partida"))),IF(E19=0,0,IF(C19=$C$6,"partida",IF(K19=0,"chegada",IF(J19<K19,"chegada","partida"))))) -> 0 | M19: 0
B20: 0 | C20: =SUM($B$9:B20) -> 5 | D20: 0 | E20: 0 | F20: 0 | G20: 0 | H20: =IF(L19=0,0,IF(L19="partida",IF(E20=0,0,RAND()),IF(E20>1,0,RAND()))) -> 0 | I20: 0 | J20: 0 | K20: 0 | L20: 0 | M20: 0
B21: 0 | C21: =SUM($B$9:B21) -> 5 | D21: 0 | E21: 0 | F21: 0 | G21: 0 | H21: 0 | I21: 0 | J21: 0 | K21: 0 | L21: 0 | M21: 0
B22: 0 | C22: =SUM($B$9:B22) -> 5 | D22: 0 | E22: 0 | F22: 0 | G22: 0 | H22: 0 | I22: 0 | J22: 0 | K22: 0 | L22: 0 | M22: 0
B23: 0 | C23: =SUM($B$9:B23) -> 5 | D23: 0 | E23: 0 | F23: 0 | G23: 0 | H23: 0 | I23: 0 | J23: 0 | K23: 0 | L23: 0 | M23: 0
B24: 0 | C24: =SUM($B$9:B24) -> 5 | D24: 0 | E24: 0 | F24: 0 | G24: 0 | H24: 0 | I24: 0 | J24: 0 | K24: 0 | L24: 0 | M24: 0
B25: 0 | C25: =SUM($B$9:B25) -> 5 | D25: 0 | E25: 0 | F25: 0 | G25: 0 | H25: 0 | I25: 0 | J25: 0 | K25: 0 | L25: 0 | M25: 0
B26: 0 | C26: =SUM($B$9:B26) -> 5 | D26: 0 | E26: 0 | F26: 0 | G26: 0 | H26: 0 | I26: 0 | J26: 0 | K26: 0 | L26: 0 | M26: 0
B27: 0 | C27: =SUM($B$9:B27) -> 5 | D27: 0 | E27: 0 | F27: 0 | G27: 0 | H27: 0 | I27: 0 | J27: 0 | K27: 0 | L27: 0 | M27: 0
B28: 0 | C28: =SUM($B$9:B28) -> 5 | D28: 0 | E28: 0 | F28: 0 | G28: 0 | H28: 0 | I28: 0 | J28: 0 | K28: 0 | L28: 0 | M28: 0
B29: 0 | C29: =SUM($B$9:B29) -> 5 | D29: 0 | E29: 0 | F29: 0 | G29: 0 | H29: 0 | I29: 0 | J29: 0 | K29: 0 | L29: 0 | M29: 0
B30: 0 | C30: =SUM($B$9:B30) -> 5 | D30: =IF(L29="partida",K29,J29) -> 0 | E30: =IF(L29="partida",E29-1,E29+B30) -> 0 | F30: =IF(C30=$C$6,0, RAND()) -> 0 | G30: 0 | H30: =IF(L29=0,0,IF(L29="partida",IF(E30=0,0,RAND()),IF(E30>1,0,RAND()))) -> 0 | I30: 0 | J30: =IF(C30=$C$6,0,+J29+G30) -> 0 | K30: =IF(D30<K29,K29,IF(I30=0,0,D30+I30)) -> 0 | L30: =IF(C30<$C$6,IF(C30=$C$6,"partida",IF(K30=0,"chegada",IF(J30<K30,"chegada","partida"))),IF(E30=0,0,IF(C30=$C$6,"partida",IF(K30=0,"chegada",IF(J30<K30,"chegada","partida"))))) -> 0 | M30: =IF(E30<2,0,(E30-1)*(D31-D30)) -> 0
B31: 0 | C31: =SUM($B$9:B31) -> 5 | D31: =IF(L30="partida",K30,J30) -> 0 | E31: =IF(L30="partida",E30-1,E30+B31) -> 0 | F31: =IF(C31=$C$6,0, RAND()) -> 0 | G31: 0 | H31: =IF(L30=0,0,IF(L30="partida",IF(E31=0,0,RAND()),IF(E31>1,0,RAND()))) -> 0 | I31: 0 | J31: =IF(C31=$C$6,0,+J30+G31) -> 0 | K31: =IF(D31<K30,K30,IF(I31=0,0,D31+I31)) -> 0 | L31: =IF(C31<$C$6,IF(C31=$C$6,"partida",IF(K31=0,"chegada",IF(J31<K31,"chegada","partida"))),IF(E31=0,0,IF(C31=$C$6,"partida",IF(K31=0,"chegada",IF(J31<K31,"chegada","partida"))))) -> 0 | M31: =IF(E31<2,0,(E31-1)*(D32-D31)) -> 0
B32: 0 | C32: =SUM($B$9:B32) -> 5 | D32: =IF(L31="partida",K31,J31) -> 0 | E32: =IF(L31="partida",E31-1,E31+B32) -> 0 | F32: =IF(C32=$C$6,0, RAND()) -> 0 | G32: 0 | H32: =IF(L31=0,0,IF(L31="partida",IF(E32=0,0,RAND()),IF(E32>1,0,RAND()))) -> 0 | I32: 0 | J32: =IF(C32=$C$6,0,+J31+G32) -> 0 | K32: =IF(D32<K31,K31,IF(I32=0,0,D32+I32)) -> 0 | L32: =IF(C32<$C$6,IF(C32=$C$6,"partida",IF(K32=0,"chegada",IF(J32<K32,"chegada","partida"))),IF(E32=0,0,IF(C32=$C$6,"partida",IF(K32=0,"chegada",IF(J32<K32,"chegada","partida"))))) -> 0 | M32: =IF(E32<2,0,(E32-1)*(D33-D32)) -> 0
B33: 0 | C33: =SUM($B$9:B33) -> 5 | D33: =IF(L32="partida",K32,J32) -> 0 | E33: =IF(L32="partida",E32-1,E32+B33) -> 0 | F33: =IF(C33=$C$6,0, RAND()) -> 0 | G33: =-15*LN(1-F33) -> 0 | H33: =IF(L32=0,0,IF(L32="partida",IF(E33=0,0,RAND()),IF(E33>1,0,RAND()))) -> 0 | I33: 0 | J33: =IF(C33=$C$6,0,+J32+G33) -> 0 | K33: =IF(D33<K32,K32,IF(I33=0,0,D33+I33)) -> 0 | L33: =IF(C33<$C$6,IF(C33=$C$6,"partida",IF(K33=0,"chegada",IF(J33<K33,"chegada","partida"))),IF(E33=0,0,IF(C33=$C$6,"partida",IF(K33=0,"chegada",IF(J33<K33,"chegada","partida"))))) -> 0 | M33: =IF(E33<2,0,(E33-1)*(D34-D33)) -> 0
E36: Medidas de Performance | R36: Medidas de Performance
C38: Tempo Total de Simulação | G38: =MAX(D9:D33) -> 92.78826753 | H38: minutos | P38: Tempo Total de Simulação | U38: =MAX(U9:U33) -> 92.78826753 | V38: minutos
C39: Tempo de Actividade (Serviço) | G39: =SUM(I9:I33) -> 63.7 | H39: " | P39: Tempo Total de Actividade (Serviço) | U39: =SUM(S9:S33) -> 63.7 | V39: "
C40: Tempo Total na Fila | G40: =SUM(M9:M33) -> 32.36939399 | H40: " | P40: Tempo Total na Fila | U40: =SUM(V9:V9:V33) -> 32.36939399 | V40: "
C41: Tempo no Sistema | G41: =+G40+G39 -> 96.06939399 | H41: " | P41: Tempo Total no Sistema | U41: =SUM(W9:W10:W33) -> 96.06939399 | V41: "
C42: Tempo de Inactividade | G42: =G38-G39 -> 29.08826753 | H42: " | P42: Tempo Total de Inactividade | U42: =+U38-U39 -> 29.08826753 | V42: "
C44: Comprimento médio da Fila | G44: =+G40/MAX(D9:D33) -> 0.3488522294 | H44: clientes | P44: Compriento médio fila | U44: =+U40/U38 -> 0.3488522294 | V44: clientes
C45: Nº médio clientes no Sistema | G45: =+G41/MAX(D9:D33) -> 1.035361437 | H45: " | P45: Nº médio Clientes no Sistema | U45: =+U41/U38 -> 1.035361437 | V45: "
C46: Tempo médio na Fila | G46: =+G40/MAX(C9:C33) -> 6.473878797 | H46: " | P46: Tempo médio na fila | U46: =+U40/MAX(Q9:Q33) -> 6.473878797 | V46: minutos
C47: Tempo médio no Sistema | G47: =+G41/MAX(C9:C33) -> 19.2138788 | H47: " | P47: Tempo médio no Sistema | U47: =+U41/MAX(Q9:Q33) -> 19.2138788 | V47: "
C49: % Utilização média do Serviço | G49: =+G39/G38*100 -> 68.65092074 | H49: % | P49: %Utilização do Sistema | U49: =+U39/U38*100 -> 68.65092074 | V49: %
C50: % Inactividade do Sistema | G50: =+G42/G38*100 -> 31.34907926 | H50: % | P50: % Inactividade do Sistema | U50: =+U42/U38*100 -> 31.34907926 | V50: %

Sheet Sheet2
B1: Exemplo 5 - Simulação
K3: Unidade: minuto | U3: Medidas de Performance : 100 Runs
D4: média | E4: min | G4: max | H4: NPA | I4: NPA | J4: Nº Clientes | K4: Intervalo | L4: Tempo | M4: Tempo | N4: Tempo | O4: Tempo | P4: Tempo | S4: M1 | T4: M2 | U4: M3 | V4: M4 | W4: M5 | X4: M6 | Y4: M7 | Z4: M8 | AA4: M9 | AB4: M10 | AC4: M11 | AD4: M12 | AE4: M13
H5: Cheg | I5: Serv | K5: Chegadas | L5: Serviço | M5: Chegada | N5: Partida | O5: Fila | P5: Sistema | S5: =+G10 -> 1264.792064 | T5: =+G11 -> 2384.486239 | U5: =+G12 -> 3649.278304 | V5: =+G13 -> 282.1781229 | W5: =+G14 -> 1546.970187 | X5: =+G15 -> 100 | Y5: =+G17 -> 1.541391204 | Z5: =+G18 -> 2.358984248 | AA5: =+G19 -> 23.84486239 | AB5: =+G20 -> 36.49278304 | AC5: =+G21 -> 12.64792064 | AD5: =+G23 -> 18.2406956 | AE5: =+G24 -> 81.7593044
B6: Exponencial | D6: 15 | H6: =RAND() -> 0.04417635337 | I6: =RAND() -> 0.5355473057 | J6: 1 | K6: =-$D$6*LN(1-H6) -> 0.677727795 | L6: =+$E$7+I6*($G$7-$E$7) -> 12.67773653 | M6: 0 | N6: =+M6+L6 -> 12.67773653 | O6: =+N6-M6-L6 -> 0 | P6: =+N6-M6 -> 12.67773653 | R6: 1 | S6: 1234.589372 | T6: 1597.73896 | U6: 2832.328332 | V6: 401.1150542 | W6: 1635.704426 | X6: 100 | Y6: 0.9767895312 | Z6: 1.731564876 | AA6: 15.9773896 | AB6: 28.32328332 | AC6: 12.34589372 | AD6: 24.52246554 | AE6: 75.47753446
B7: Uniforme | E7: 10 | G7: 15 | H7: =RAND() -> 0.5450932489 | I7: 0.6709607452 | J7: =+J6+1 -> 2 | K7: 11.81494236 | L7: =+$E$7+I7*($G$7-$E$7) -> 13.35480373 | M7: =+M6+K6 -> 0.677727795 | N7: =MAX(M7,N6)+L7 -> 26.03254025 | O7: =+N7-M7-L7 -> 12.00000873 | P7: =+N7-M7 -> 25.35481246 | R7: =+R6+1 -> 2 | S7: 1222.340146 | T7: 1443.481117 | U7: 2665.821262 | V7: 476.62107 | W7: 1698.961216 | X7: 100 | Y7: 0.8496257025 | Z7: 1.569088945 | AA7: 14.43481117 | AB7: 26.65821262 | AC7: 12.22340146 | AD7: 28.05367572 | AE7: 71.94632428
H8: 0.2879770576 | I8: 0.06486331719 | J8: =+J7+1 -> 3 | K8: 5.094677183 | L8: 10.32431659 | M8: =+M7+K7 -> 12.49267015 | N8: =MAX(M8,N7)+L8 -> 36.35685684 | O8: 13.5398701 | P8: 23.86418669 | R8: =+R7+1 -> 3 | S8: 1287.813787 | T8: 2365.686882 | U8: 3653.500669 | V8: 182.6450241 | W8: 1470.458811 | X8: 100 | Y8: 1.608808669 | Z8: 2.484599121 | AA8: 23.65686882 | AB8: 36.53500669 | AC8: 12.87813787 | AD8: 12.42095479 | AE8: 87.57904521
E9: Média | G9: Run 0 | H9: 0.2596625303 | I9: 0.9996788946 | J9: 4 | K9: 4.509737349 | L9: 14.99839447 | M9: 17.58734733 | N9: 51.35525131 | O9: 18.76950951 | P9: 33.76790398 | R9: 4 | S9: 1227.510276 | T9: 1733.315124 | U9: 2960.8254 | V9: 325.9652296 | W9: 1553.475506 | X9: 100 | Y9: 1.115765983 | Z9: 1.905936328 | AA9: 17.33315124 | AB9: 29.608254 | AC9: 12.27510276 | AD9: 20.98296551 | AE9: 79.01703449
B10: Tempo Total de Actividade (Serviço) | D10: M1 | E10: =AVERAGE(S5:S105) -> 1250.847064 | G10: =SUM(L6:L5055) -> 1264.792064 | H10: 0.5993320498 | I10: 0.09931556457 | J10: 5 | K10: 13.71933373 | L10: 10.49657782 | M10: 22.09708468 | N10: 61.85182914 | O10: 29.25816663 | P10: 39.75474445 | R10: 5 | S10: 1275.259268 | T10: 4619.92745 | U10: 5895.186718 | V10: 165.9924103 | W10: 1441.251678 | X10: 100 | Y10: 3.205496666 | Z10: 4.090324269 | AA10: 46.1992745 | AB10: 58.95186718 | AC10: 12.75259268 | AD10: 11.51723969 | AE10: 88.48276031
B11: Tempo Total na Fila | D11: M2 | E11: =AVERAGE(T5:T105) -> 2379.766022 | G11: =SUM(O6:O5055) -> 2384.486239 | H11: 0.3585086819 | I11: 0.9463709958 | J11: 6 | K11: 6.659394431 | L11: 14.73185498 | M11: 35.81641842 | N11: 76.58368412 | O11: 26.03541072 | P11: 40.7672657 | R11: 6 | S11: 1249.308593 | T11: 2690.249013 | U11: 3939.557607 | V11: 172.7096643 | W11: 1422.018258 | X11: 100 | Y11: 1.891852653 | Z11: 2.770398752 | AA11: 26.90249013 | AB11: 39.39557607 | AC11: 12.49308593 | AD11: 12.14539007 | AE11: 87.85460993
B12: Tempo Total no Sistema | D12: M3 | E12: =AVERAGE(U5:U105) -> 3630.613085 | G12: =SUM(P6:P5055) -> 3649.278304 | H12: 0.7338499926 | I12: 0.6360858281 | J12: 7 | K12: 19.85542787 | L12: 13.18042914 | M12: 42.47581285 | N12: 89.76411326 | O12: 34.10787127 | P12: 47.28830041 | R12: 7 | S12: 1286.843023 | T12: 5886.295895 | U12: 7173.138918 | V12: 161.7070965 | W12: 1448.55012 | X12: 100 | Y12: 4.063577653 | Z12: 4.951943892 | AA12: 58.86295895 | AB12: 71.73138918 | AC12: 12.86843023 | AD12: 11.16337601 | AE12: 88.83662399
B13: Tempo Total de Inactividade | D13: M4 | E13: =AVERAGE(V5:V105) -> 295.9566915 | G13: =+G14-G10 -> 282.1781229 | H13: 0.2646671709 | I13: 0.9910672313 | J13: 8 | K13: 4.611480803 | L13: 14.95533616 | M13: 62.33124072 | N13: 104.7194494 | O13: 27.43287253 | P13: 42.38820869 | R13: 8 | S13: 1248.270599 | T13: 2664.523963 | U13: 3912.794562 | V13: 249.5255706 | W13: 1497.79617 | X13: 100 | Y13: 1.778962997 | Z13: 2.612367851 | AA13: 26.64523963 | AB13: 39.12794562 | AC13: 12.48270599 | AD13: 16.65951453 | AE13: 83.34048547
B14: Tempo Total de Simulação | D14: M5 | E14: =AVERAGE(W5:W105) -> 1546.803755 | G14: =+MAX(N6:N5055) -> 1546.970187 | H14: 0.5398457609 | I14: 0.1078692788 | J14: 9 | K14: 11.64290315 | L14: 10.53934639 | M14: 66.94272152 | N14: 115.2587958 | O14: 37.77672789 | P14: 48.31607428 | R14: 9 | S14: 1255.9031 | T14: 2890.023633 | U14: 4145.926734 | V14: 195.6355378 | W14: 1451.538638 | X14: 100 | Y14: 1.991007031 | Z14: 2.856228987 | AA14: 28.90023633 | AB14: 41.45926734 | AC14: 12.559031 | AD14: 13.47780436 | AE14: 86.52219564
B15: Nº Clientes | D15: M6 | E15: =AVERAGE(X5:X105) -> 100 | G15: =MAX(J6:J105) -> 100 | H15: 0.7519604749 | I15: 0.910485651 | J15: 10 | K15: 20.91250755 | L15: 14.55242825 | M15: 78.58562467 | N15: 129.8112241 | O15: 36.67317113 | P15: 51.22559939 | R15: 10 | S15: 1227.472183 | T15: 938.2054804 | U15: 2165.677663 | V15: 460.0609647 | W15: 1687.533148 | X15: 100 | Y15: 0.5559626972 | Z15: 1.283339333 | AA15: 9.382054804 | AB15: 21.65677663 | AC15: 12.27472183 | AD15: 27.26233647 | AE15: 72.73766353
H16: 0.2434303303 | I16: 0.6166813933 | J16: 11 | K16: 4.184409829 | L16: 13.08340697 | M16: 99.49813223 | N16: 142.894631 | O16: 30.31309183 | P16: 43.3964988 | R16: 11 | S16: 1272.212907 | T16: 3116.403585 | U16: 4388.616492 | V16: 229.8306962 | W16: 1502.043603 | X16: 100 | Y16: 2.074775712 | Z16: 2.921763711 | AA16: 31.16403585 | AB16: 43.88616492 | AC16: 12.72212907 | AD16: 15.30120003 | AE16: 84.69879997
B17: Comprimento médio fila | D17: M7 | E17: =AVERAGE(Y5:Y105) -> 1.600251373 | G17: =+G11/G14 -> 1.541391204 | H17: 0.9348212636 | I17: 0.06637070597 | J17: 12 | K17: 40.95932989 | L17: 10.33185353 | M17: 103.6825421 | N17: 153.2264846 | O17: 39.21208897 | P17: 49.5439425 | R17: 12 | S17: 1268.454684 | T17: 2762.816182 | U17: 4031.270866 | V17: 241.7880051 | W17: 1510.242689 | X17: 100 | Y17: 1.829385569 | Z17: 2.669286794 | AA17: 27.62816182 | AB17: 40.31270866 | AC17: 12.68454684 | AD17: 16.00987754 | AE17: 83.99012246
B18: Nº médio Cl. Sistema | D18: M8 | E18: =AVERAGE(Z5:Z105) -> 2.415840956 | G18: =+G12/G14 -> 2.358984248 | H18: 0.8076214667 | I18: 0.4904012581 | J18: 13 | K18: 24.7243548 | L18: 12.45200629 | M18: 144.6418719 | N18: 165.6784908 | O18: 8.58461261 | P18: 21.0366189 | R18: 13 | S18: 1241.588958 | T18: 1658.30431 | U18: 2899.893268 | V18: 231.0484615 | W18: 1472.63742 | X18: 100 | Y18: 1.126077803 | Z18: 1.969183473 | AA18: 16.5830431 | AB18: 28.99893268 | AC18: 12.41588958 | AD18: 15.68943302 | AE18: 84.31056698
B19: Tempo médio na fila | D19: M9 | E19: =AVERAGE(AA5:AA105) -> 23.79766022 | G19: =+G11/G15 -> 23.84486239 | H19: 0.3878359963 | I19: 0.8398783968 | J19: 14 | K19: 7.361325788 | L19: 14.19939198 | M19: 169.3662267 | N19: 183.5656187 | O19: 0 | P19: 14.19939198 | R19: 14 | S19: 1240.282913 | T19: 2585.092677 | U19: 3825.37559 | V19: 363.2670529 | W19: 1603.549966 | X19: 100 | Y19: 1.612106097 | Z19: 2.385566818 | AA19: 25.85092677 | AB19: 38.2537559 | AC19: 12.40282913 | AD19: 22.65392789 | AE19: 77.34607211
B20: Tempo médio no Sistema | D20: M10 | E20: =AVERAGE(AB5:AB105) -> 36.30613085 | G20: =+G12/G15 -> 36.49278304 | H20: 0.673218845 | I20: 0.2086339967 | J20: 15 | K20: 16.77696874 | L20: 11.04316998 | M20: 176.7275525 | N20: 194.6087887 | O20: 6.838066196 | P20: 17.88123618 | R20: 15 | S20: 1247.016694 | T20: 3151.333932 | U20: 4398.350626 | V20: 243.7765001 | W20: 1490.793194 | X20: 100 | Y20: 2.113863911 | Z20: 2.950342571 | AA20: 31.51333932 | AB20: 43.98350626 | AC20: 12.47016694 | AD20: 16.35213395 | AE20: 83.64786605
B21: Tempo médio no Serviço | D21: M11 | E21: =AVERAGE(AC5:AC105) -> 12.50847064 | G21: =+G10/G15 -> 12.64792064 | H21: 0.8864084522 | I21: 0.6527692624 | J21: 16 | K21: 32.62719267 | L21: 13.26384631 | M21: 193.5045213 | N21: 207.872635 | O21: 1.104267435 | P21: 14.36811375 | R21: 16 | S21: 1253.541308 | T21: 1389.212647 | U21: 2642.753956 | V21: 262.3321045 | W21: 1515.873413 | X21: 100 | Y21: 0.9164437054 | Z21: 1.74338697 | AA21: 13.89212647 | AB21: 26.42753956 | AC21: 12.53541308 | AD21: 17.30567356 | AE21: 82.69432644
H22: 0.8010173407 | I22: 0.5419998167 | J22: 17 | K22: 24.21806396 | L22: 12.70999908 | M22: 226.131714 | N22: 238.841713 | O22: 0 | P22: 12.70999908 | R22: 17 | S22: 1231.020395 | T22: 1756.204586 | U22: 2987.224981 | V22: 284.2839567 | W22: 1515.304351 | X22: 100 | Y22: 1.158978119 | Z22: 1.971369632 | AA22: 17.56204586 | AB22: 29.87224981 | AC22: 12.31020395 | AD22: 18.7608487 | AE22: 81.2391513
B23: % Inactividade do Sistema | D23: M12 | E23: =AVERAGE(AD5:AD105) -> 18.44104167 | G23: =+G13/G14*100 -> 18.2406956 | H23: 0.2574699566 | I23: 0.6785584718 | J23: 18 | K23: 4.465379199 | L23: 13.39279236 | M23: 250.3497779 | N23: 263.7425703 | O23: 2.486899575e-14 | P23: 13.39279236 | R23: 18 | S23: 1224.554048 | T23: 1978.278697 | U23: 3202.832745 | V23: 301.6177049 | W23: 1526.171753 | X23: 100 | Y23: 1.296235954 | Z23: 2.098605704 | AA23: 19.78278697 | AB23: 32.02832745 | AC23: 12.24554048 | AD23: 19.76302499 | AE23: 80.23697501
B24: %Utilização do Sistema | D24: M13 | E24: =AVERAGE(AE5:AE105) -> 81.55895833 | G24: =+G10/G14*100 -> 81.7593044 | H24: 0.9925111841 | I24: 0.2694863796 | J24: 19 | K24: 73.41516871 | L24: 11.3474319 | M24: 254.8151571 | N24: 275.0900022 | O24: 8.92741316 | P24: 20.27484506 | R24: 19 | S24: 1232.361503 | T24: 3272.067775 | U24: 4504.429279 | V24: 56.58242087 | W24: 1288.943924 | X24: 100 | Y24: 2.538564878 | Z24: 3.494666598 | AA24: 32.72067775 | AB24: 45.04429279 | AC24: 12.32361503 | AD24: 4.389827967 | AE24: 95.61017203
H25: 0.6185256779 | I25: 0.8889809167 | J25: 20 | K25: 14.45567607 | L25: 14.44490458 | M25: 328.2303258 | N25: 342.6752304 | O25: 1.953992523e-14 | P25: 14.44490458 | R25: 20 | S25: 1258.703628 | T25: 1662.576973 | U25: 2921.280601 | V25: 349.4686807 | W25: 1608.172309 | X25: 100 | Y25: 1.033830121 | Z25: 1.816522138 | AA25: 16.62576973 | AB25: 29.21280601 | AC25: 12.58703628 | AD25: 21.73079829 | AE25: 78.26920171
H26: 0.4888869495 | I26: 0.05126555151 | J26: 21 | K26: 10.06746719 | L26: 10.25632776 | M26: 342.6860019 | N26: 352.9423297 | O26: -2.131628207e-14 | P26: 10.25632776 | R26: 21 | S26: 1247.952465 | T26: 1406.817946 | U26: 2654.770411 | V26: 435.6294777 | W26: 1683.581942 | X26: 100 | Y26: 0.8356100235 | Z26: 1.576858449 | AA26: 14.06817946 | AB26: 26.54770411 | AC26: 12.47952465 | AD26: 25.87515741 | AE26: 74.12484259
H27: 0.8548387276 | I27: 0.4076114345 | J27: 22 | K27: 28.94864897 | L27: 12.03805717 | M27: 352.7534691 | N27: 364.9803868 | O27: 0.1888605656 | P27: 12.22691774 | R27: 22 | S27: 1263.086759 | T27: 1278.453686 | U27: 2541.540444 | V27: 539.1719881 | W27: 1802.258747 | X27: 100 | Y27: 0.7093618983 | Z27: 1.410197314 | AA27: 12.78453686 | AB27: 25.41540444 | AC27: 12.63086759 | AD27: 29.91645839 | AE27: 70.08354161
B28: Nº de Runs = 101 | H28: 0.9098193857 | I28: 0.2715038067 | J28: 23 | K28: 36.08911192 | L28: 11.35751903 | M28: 381.7021181 | N28: 393.0596371 | O28: 0 | P28: 11.35751903 | R28: 23 | S28: 1245.851958 | T28: 2809.986184 | U28: 4055.838142 | V28: 276.6072035 | W28: 1522.459161 | X28: 100 | Y28: 1.845689037 | Z28: 2.664004556 | AA28: 28.09986184 | AB28: 40.55838142 | AC28: 12.45851958 | AD28: 18.16844816 | AE28: 81.83155184
H29: 0.5109723434 | I29: 0.3709053679 | J29: 24 | K29: 10.73004351 | L29: 11.85452684 | M29: 417.79123 | N29: 429.6457568 | O29: 0 | P29: 11.85452684 | R29: 24 | S29: 1253.237782 | T29: 5243.761326 | U29: 6496.999108 | V29: 106.6155132 | W29: 1359.853295 | X29: 100 | Y29: 3.856122822 | Z29: 4.777720605 | AA29: 52.43761326 | AB29: 64.96999108 | AC29: 12.53237782 | AD29: 7.840221708 | AE29: 92.15977829
H30: 0.2956904868 | I30: 0.004901146372 | J30: 25 | K30: 5.258060549 | L30: 10.02450573 | M30: 428.5212735 | N30: 439.6702625 | O30: 1.124483334 | P30: 11.14898907 | R30: 25 | S30: 1236.459769 | T30: 1488.529701 | U30: 2724.98947 | V30: 281.0339527 | W30: 1517.493722 | X30: 100 | Y30: 0.980913252 | Z30: 1.79571713 | AA30: 14.88529701 | AB30: 27.2498947 | AC30: 12.36459769 | AD30: 18.51961222 | AE30: 81.48038778
H31: 0.8525676484 | I31: 0.3629000332 | J31: 26 | K31: 28.71578762 | L31: 11.81450017 | M31: 433.779334 | N31: 451.4847627 | O31: 5.890928517 | P31: 17.70542868 | R31: 26 | S31: 1292.42956 | T31: 2432.184421 | U31: 3724.613981 | V31: 213.9336606 | W31: 1506.36322 | X31: 100 | Y31: 1.614606881 | Z31: 2.47258691 | AA31: 24.32184421 | AB31: 37.24613981 | AC31: 12.9242956 | AD31: 14.20199708 | AE31: 85.79800292
H32: 0.6328347439 | I32: 0.8491125897 | J32: 27 | K32: 15.02914865 | L32: 14.24556295 | M32: 462.4951217 | N32: 476.7406846 | O32: 0 | P32: 14.24556295 | R32: 27 | S32: 1238.74181 | T32: 2430.063719 | U32: 3668.805529 | V32: 329.2019299 | W32: 1567.94374 | X32: 100 | Y32: 1.549841144 | Z32: 2.3398834 | AA32: 24.30063719 | AB32: 36.68805529 | AC32: 12.3874181 | AD32: 20.99577437 | AE32: 79.00422563
H33: 0.9180676473 | I33: 0.9474601552 | J33: 28 | K33: 37.52792008 | L33: 14.73730078 | M33: 477.5242703 | N33: 492.2615711 | O33: 0 | P33: 14.73730078 | R33: 28 | S33: 1238.560076 | T33: 1121.695515 | U33: 2360.255591 | V33: 563.4764488 | W33: 1802.036525 | X33: 100 | Y33: 0.6224599219 | Z33: 1.309771227 | AA33: 11.21695515 | AB33: 23.60255591 | AC33: 12.38560076 | AD33: 31.26886947 | AE33: 68.73113053
H34: 0.8893263532 | I34: 0.1826299984 | J34: 29 | K34: 33.01754291 | L34: 10.91314999 | M34: 515.0521904 | N34: 525.9653404 | O34: -5.329070518e-14 | P34: 10.91314999 | R34: 29 | S34: 1262.559033 | T34: 2200.377526 | U34: 3462.93656 | V34: 143.7691927 | W34: 1406.328226 | X34: 100 | Y34: 1.564625871 | Z34: 2.462395688 | AA34: 22.00377526 | AB34: 34.6293656 | AC34: 12.62559033 | AD34: 10.22301836 | AE34: 89.77698164
H35: =RAND() -> 0.04278880149 | I35: =RAND() -> 0.1351749097 | J35: 30 | K35: 0.6559683567 | L35: 10.67587455 | M35: 548.0697333 | N35: 558.7456078 | O35: 0 | P35: 10.67587455 | R35: 30 | S35: 1269.705333 | T35: 4717.489423 | U35: 5987.194756 | V35: 28.55420666 | W35: 1298.25954 | X35: 100 | Y35: 3.633702876 | Z35: 4.611708656 | AA35: 47.17489423 | AB35: 59.87194756 | AC35: 12.69705333 | AD35: 2.199422056 | AE35: 97.80057794
H36: =RAND() -> 0.9947011379 | I36: 0.9888721744 | J36: =+J35+1 -> 31 | K36: 78.60394778 | L36: =+$E$7+I36*($G$7-$E$7) -> 14.94436087 | M36: =+M35+K35 -> 548.7257017 | N36: =MAX(M36,N35)+L36 -> 573.6899687 | O36: =+N36-M36-L36 -> 10.01990619 | P36: =+N36-M36 -> 24.96426706 | R36: 31 | S36: 1218.880149 | T36: 1018.721501 | U36: 2237.60165 | V36: 335.9370432 | W36: 1554.817192 | X36: 100 | Y36: 0.6552033938 | Z36: 1.43914131 | AA36: 10.18721501 | AB36: 22.3760165 | AC36: 12.18880149 | AD36: 21.60620843 | AE36: 78.39379157
H37: 0.7349052255 | I37: 0.9816301119 | J37: 32 | K37: 19.91501816 | L37: 14.90815056 | M37: 627.3296494 | N37: 642.2378 | O37: -4.796163466e-14 | P37: 14.90815056 | R37: 32 | S37: 1248.254449 | T37: 2645.187074 | U37: 3893.441523 | V37: 98.9399317 | W37: 1347.194381 | X37: 100 | Y37: 1.963478405 | Z37: 2.890036938 | AA37: 26.45187074 | AB37: 38.93441523 | AC37: 12.48254449 | AD37: 7.344146704 | AE37: 92.6558533
H38: 0.1410204481 | I38: 0.7726430605 | J38: 33 | K38: =-$D$6*LN(1-H38) -> 2.280152426 | L38: 13.8632153 | M38: 647.2446676 | N38: 661.1078829 | O38: 0 | P38: 13.8632153 | R38: 33 | S38: 1254.041642 | T38: 1639.915884 | U38: 2893.957526 | V38: 539.9565346 | W38: 1793.998177 | X38: 100 | Y38: 0.9141123469 | Z38: 1.613132925 | AA38: 16.39915884 | AB38: 28.93957526 | AC38: 12.54041642 | AD38: 30.09794222 | AE38: 69.90205778
H39: 0.7822414027 | I39: 0.4800367829 | J39: 34 | K39: 22.86552273 | L39: 12.40018391 | M39: 649.52482 | N39: 673.5080668 | O39: 11.58306288 | P39: 23.98324679 | R39: 34 | S39: 1254.063737 | T39: 3550.46595 | U39: 4804.529688 | V39: 381.9249164 | W39: 1635.988654 | X39: 100 | Y39: 2.170226512 | Z39: 2.936774455 | AA39: 35.5046595 | AB39: 48.04529688 | AC39: 12.54063737 | AD39: 23.3452057 | AE39: 76.6547943
H40: 0.3531031956 | I40: 0.8978151003 | J40: 35 | K40: 6.533527438 | L40: 14.4890755 | M40: 672.3903427 | N40: 687.9971423 | O40: 1.117724065 | P40: 15.60679957 | R40: 35 | S40: 1260.279961 | T40: 2012.270078 | U40: 3272.550038 | V40: 331.3196318 | W40: 1591.599593 | X40: 100 | Y40: 1.264306731 | Z40: 2.056139027 | AA40: 20.12270078 | AB40: 32.72550038 | AC40: 12.60279961 | AD40: 20.81677033 | AE40: 79.18322967
H41: 0.2933621977 | I41: 0.4214053334 | J41: 36 | K41: 5.2085557 | L41: 12.10702667 | M41: 678.9238702 | N41: 700.104169 | O41: 9.073272129 | P41: 21.1802988 | R41: 36 | S41: 1249.769809 | T41: 2205.916462 | U41: 3455.686271 | V41: 268.3644466 | W41: 1518.134256 | X41: 100 | Y41: 1.453044389 | Z41: 2.27627185 | AA41: 22.05916462 | AB41: 34.55686271 | AC41: 12.49769809 | AD41: 17.67725388 | AE41: 82.32274612
H42: 0.954391819 | I42: 0.1058373497 | J42: 37 | K42: 46.31502257 | L42: 10.52918675 | M42: 684.1324259 | N42: 710.6333557 | O42: 15.9717431 | P42: 26.50092984 | R42: 37 | S42: 1236.488334 | T42: 2327.258451 | U42: 3563.746785 | V42: 359.759908 | W42: 1596.248242 | X42: 100 | Y42: 1.457955217 | Z42: 2.232576796 | AA42: 23.27258451 | AB42: 35.63746785 | AC42: 12.36488334 | AD42: 22.53784208 | AE42: 77.46215792
H43: 0.1324143332 | I43: 0.7718062997 | J43: 38 | K43: 2.13061531 | L43: 13.8590315 | M43: 730.4474485 | N43: 744.30648 | O43: 0 | P43: 13.8590315 | R43: 38 | S43: 1254.029821 | T43: 3228.49908 | U43: 4482.528901 | V43: 224.0860749 | W43: 1478.115896 | X43: 100 | Y43: 2.184198876 | Z43: 3.03259637 | AA43: 32.2849908 | AB43: 44.82528901 | AC43: 12.54029821 | AD43: 15.16025066 | AE43: 84.83974934
H44: 0.38930636 | I44: 0.3925750591 | J44: 39 | K44: 7.397397796 | L44: 11.9628753 | M44: 732.5780638 | N44: 756.2693552 | O44: 11.72841619 | P44: 23.69129148 | R44: 39 | S44: 1242.204345 | T44: 2276.608299 | U44: 3518.812644 | V44: 302.4891562 | W44: 1544.693501 | X44: 100 | Y44: 1.473825259 | Z44: 2.278000549 | AA44: 22.76608299 | AB44: 35.18812644 | AC44: 12.42204345 | AD44: 19.58247095 | AE44: 80.41752905
H45: 0.938530773 | I45: 0.5443652418 | J45: 40 | K45: 41.83827906 | L45: 12.72182621 | M45: 739.9754616 | N45: 768.9911815 | O45: 16.29389369 | P45: 29.0157199 | R45: 40 | S45: 1236.084299 | T45: 2861.986576 | U45: 4098.070875 | V45: 70.39213808 | W45: 1306.476437 | X45: 100 | Y45: 2.190614767 | Z45: 3.136735389 | AA45: 28.61986576 | AB45: 40.98070875 | AC45: 12.36084299 | AD45: 5.387937821 | AE45: 94.61206218
H46: 0.6620656735 | I46: 0.02537773407 | J46: 41 | K46: 16.27355554 | L46: 10.12688867 | M46: 781.8137406 | N46: 791.9406293 | O46: -2.664535259e-14 | P46: 10.12688867 | R46: 41 | S46: 1236.802547 | T46: 2878.767814 | U46: 4115.57036 | V46: 224.8663149 | W46: 1461.668862 | X46: 100 | Y46: 1.969507519 | Z46: 2.815665346 | AA46: 28.78767814 | AB46: 41.1557036 | AC46: 12.36802547 | AD46: 15.38421737 | AE46: 84.61578263
H47: 0.1561386267 | I47: 0.3238695964 | J47: 42 | K47: 2.546505712 | L47: 11.61934798 | M47: 798.0872962 | N47: 809.7066441 | O47: 3.907985047e-14 | P47: 11.61934798 | R47: 42 | S47: 1239.733237 | T47: 1894.942516 | U47: 3134.675752 | V47: 362.7269203 | W47: 1602.460157 | X47: 100 | Y47: 1.182520831 | Z47: 1.95616455 | AA47: 18.94942516 | AB47: 31.34675752 | AC47: 12.39733237 | AD47: 22.63562802 | AE47: 77.36437198
H48: 0.005384583066 | I48: 0.9843233463 | J48: 43 | K48: 0.08098698276 | L48: 14.92161673 | M48: 800.6338019 | N48: 824.6282609 | O48: 9.07284227 | P48: 23.994459 | R48: 43 | S48: 1268.97045 | T48: 2005.58557 | U48: 3274.556021 | V48: 132.5776983 | W48: 1401.548149 | X48: 100 | Y48: 1.430978716 | Z48: 2.336384964 | AA48: 20.0558557 | AB48: 32.74556021 | AC48: 12.6897045 | AD48: 9.459375222 | AE48: 90.54062478
H49: 0.3635561458 | I49: 0.3174378338 | J49: 44 | K49: 6.777886125 | L49: 11.58718917 | M49: 800.7147889 | N49: 836.21545 | O49: 23.91347202 | P49: 35.50066119 | R49: 44 | S49: 1266.101575 | T49: 2061.147066 | U49: 3327.248641 | V49: 404.6017541 | W49: 1670.70333 | X49: 100 | Y49: 1.23370022 | Z49: 1.991525714 | AA49: 20.61147066 | AB49: 33.27248641 | AC49: 12.66101575 | AD49: 24.21745064 | AE49: 75.78254936
H50: =RAND() -> 0.07947511015 | I50: =RAND() -> 0.3760640912 | J50: 45 | K50: 1.242168588 | L50: 11.88032046 | M50: 807.492675 | N50: 848.0957705 | O50: 28.72277506 | P50: 40.60309552 | R50: 45 | S50: 1277.216116 | T50: 1710.129288 | U50: 2987.345404 | V50: 305.4978733 | W50: 1582.713989 | X50: 100 | Y50: 1.080504311 | Z50: 1.887482782 | AA50: 17.10129288 | AB50: 29.87345404 | AC50: 12.77216116 | AD50: 19.30215285 | AE50: 80.69784715
H51: 0.2135483282 | I51: 0.4586204873 | J51: =+J50+1 -> 46 | K51: 3.603360082 | L51: =+$E$7+I51*($G$7-$E$7) -> 12.29310244 | M51: =+M50+K50 -> 808.7348436 | N51: =MAX(M51,N50)+L51 -> 860.3888729 | O51: =+N51-M51-L51 -> 39.36092693 | P51: =+N51-M51 -> 51.65402937 | R51: 46 | S51: 1244.746525 | T51: 1134.457514 | U51: 2379.204039 | V51: 661.7479077 | W51: 1906.494433 | X51: 100 | Y51: 0.5950489517 | Z51: 1.247947016 | AA51: 11.34457514 | AB51: 23.79204039 | AC51: 12.44746525 | AD51: 34.71019355 | AE51: 65.28980645
H52: =RAND() -> 0.1305654204 | I52: 0.921815255 | J52: =+J51+1 -> 47 | K52: 2.098682807 | L52: =+$E$7+I52*($G$7-$E$7) -> 14.60907628 | M52: =+M51+K51 -> 812.3382036 | N52: =MAX(M52,N51)+L52 -> 874.9979492 | O52: =+N52-M52-L52 -> 48.05066928 | P52: =+N52-M52 -> 62.65974556 | R52: 47 | S52: 1262.175122 | T52: 1573.575652 | U52: 2835.750774 | V52: 303.7663718 | W52: 1565.941494 | X52: 100 | Y52: 1.004875123 | Z52: 1.810891904 | AA52: 15.73575652 | AB52: 28.35750774 | AC52: 12.62175122 | AD52: 19.3983219 | AE52: 80.6016781
H53: 0.1300630923 | I53: 0.07425136848 | J53: =+J52+1 -> 48 | K53: 2.090018848 | L53: =+$E$7+I53*($G$7-$E$7) -> 10.37125684 | M53: =+M52+K52 -> 814.4368865 | N53: =MAX(M53,N52)+L53 -> 885.369206 | O53: =+N53-M53-L53 -> 60.56106275 | P53: =+N53-M53 -> 70.93231959 | R53: 48 | S53: 1255.796241 | T53: 3212.787874 | U53: 4468.584115 | V53: 207.9997362 | W53: 1463.795977 | X53: 100 | Y53: 2.194833108 | Z53: 3.052736983 | AA53: 32.12787874 | AB53: 44.68584115 | AC53: 12.55796241 | AD53: 14.2096125 | AE53: 85.7903875
H54: 0.4377262197 | I54: 0.1354269952 | J54: =+J53+1 -> 49 | K54: 8.636495912 | L54: =+$E$7+I54*($G$7-$E$7) -> 10.67713498 | M54: =+M53+K53 -> 816.5269053 | N54: =MAX(M54,N53)+L54 -> 896.046341 | O54: =+N54-M54-L54 -> 68.84230075 | P54: =+N54-M54 -> 79.51943572 | R54: 49 | S54: 1251.682673 | T54: 1632.490233 | U54: 2884.172906 | V54: 572.6352133 | W54: 1824.317887 | X54: 100 | Y54: 0.8948496556 | Z54: 1.580959616 | AA54: 16.32490233 | AB54: 28.84172906 | AC54: 12.51682673 | AD54: 31.38900394 | AE54: 68.61099606
H55: 0.988466065 | I55: 0.942290757 | J55: =+J54+1 -> 50 | K55: 66.9369258 | L55: =+$E$7+I55*($G$7-$E$7) -> 14.71145378 | M55: =+M54+K54 -> 825.1634012 | N55: =MAX(M55,N54)+L55 -> 910.7577948 | O55: =+N55-M55-L55 -> 70.88293981 | P55: =+N55-M55 -> 85.5943936 | R55: 50 | S55: 1240.336718 | T55: 1714.208243 | U55: 2954.544961 | V55: 508.7146111 | W55: 1749.051329 | X55: 100 | Y55: 0.9800788663 | Z55: 1.689227133 | AA55: 17.14208243 | AB55: 29.54544961 | AC55: 12.40336718 | AD55: 29.08517336 | AE55: 70.91482664
H56: =RAND() -> 0.7964716608 | I56: 0.7675386779 | J56: =+J55+1 -> 51 | K56: 23.87925037 | L56: =+$E$7+I56*($G$7-$E$7) -> 13.83769339 | M56: =+M55+K55 -> 892.100327 | N56: =MAX(M56,N55)+L56 -> 924.5954882 | O56: =+N56-M56-L56 -> 18.65746779 | P56: =+N56-M56 -> 32.49516118 | R56: 51 | S56: 1233.152004 | T56: 1326.027284 | U56: 2559.179288 | V56: 297.8550368 | W56: 1531.007041 | X56: 100 | Y56: 0.8661144254 | Z56: 1.671565982 | AA56: 13.26027284 | AB56: 25.59179288 | AC56: 12.33152004 | AD56: 19.45484435 | AE56: 80.54515565
H57: 0.1621518817 | I57: 0.6477228312 | J57: 52 | K57: 2.653776571 | L57: 13.23861416 | M57: 915.9795774 | N57: 937.8341024 | O57: 8.615910811 | P57: 21.85452497 | R57: 52 | S57: 1240.472305 | T57: 2943.057454 | U57: 4183.52976 | V57: 84.87997239 | W57: 1325.352278 | X57: 100 | Y57: 2.22058505 | Z57: 3.156541721 | AA57: 29.43057454 | AB57: 41.8352976 | AC57: 12.40472305 | AD57: 6.404332932 | AE57: 93.59566707
H58: 0.2906085483 | I58: 0.4452032942 | J58: 53 | K58: 5.150216802 | L58: 12.22601647 | M58: 918.633354 | N58: 950.0601188 | O58: 19.2007484 | P58: 31.42676487 | R58: 53 | S58: 1258.948603 | T58: 1240.887807 | U58: 2499.83641 | V58: 512.461757 | W58: 1771.41036 | X58: 100 | Y58: 0.7005083834 | Z58: 1.411212482 | AA58: 12.40887807 | AB58: 24.9983641 | AC58: 12.58948603 | AD58: 28.92959015 | AE58: 71.07040985
H59: 0.3689311096 | I59: 0.9469325323 | J59: 54 | K59: 6.905103687 | L59: 14.73466266 | M59: 923.7835708 | N59: 964.7947815 | O59: 26.27654807 | P59: 41.01121073 | R59: 54 | S59: 1243.280049 | T59: 2895.619197 | U59: 4138.899246 | V59: 73.23281199 | W59: 1316.512861 | X59: 100 | Y59: 2.199461382 | Z59: 3.143835027 | AA59: 28.95619197 | AB59: 41.38899246 | AC59: 12.43280049 | AD59: 5.562635517 | AE59: 94.43736448
H60: 0.9069987533 | I60: 0.4072009416 | J60: 55 | K60: 35.62713571 | L60: 12.03600471 | M60: 930.6886744 | N60: 976.8307862 | O60: 34.10610704 | P60: 46.14211175 | R60: 55 | S60: 1225.002167 | T60: 3534.34615 | U60: 4759.348317 | V60: 46.71259388 | W60: 1271.714761 | X60: 100 | Y60: 2.779197237 | Z60: 3.742465263 | AA60: 35.3434615 | AB60: 47.59348317 | AC60: 12.25002167 | AD60: 3.673197426 | AE60: 96.32680257
H61: 0.7360312796 | I61: 0.7401124907 | J61: 56 | K61: 19.97886999 | L61: 13.70056245 | M61: 966.3158102 | N61: 990.5313486 | O61: 10.51497604 | P61: 24.21553849 | R61: 56 | S61: 1237.941979 | T61: 1585.025009 | U61: 2822.966988 | V61: 307.8993651 | W61: 1545.841344 | X61: 100 | Y61: 1.025347792 | Z61: 1.826168642 | AA61: 15.85025009 | AB61: 28.22966988 | AC61: 12.37941979 | AD61: 19.91791501 | AE61: 80.08208499
H62: 0.473474323 | I62: 0.3361690237 | J62: 57 | K62: 9.62182769 | L62: 11.68084512 | M62: 986.2946802 | N62: 1002.212194 | O62: 4.236668499 | P62: 15.91751362 | R62: 57 | S62: 1277.586105 | T62: 3560.837433 | U62: 4838.423537 | V62: 133.9316124 | W62: 1411.517717 | X62: 100 | Y62: 2.522701195 | Z62: 3.42781637 | AA62: 35.60837433 | AB62: 48.38423537 | AC62: 12.77586105 | AD62: 9.488482555 | AE62: 90.51151744
H63: 0.4064120262 | I63: 0.4655343391 | J63: 58 | K63: 7.823547705 | L63: 12.3276717 | M63: 995.9165078 | N63: 1014.539865 | O63: 6.295685927 | P63: 18.62335762 | R63: 58 | S63: 1248.865607 | T63: 2704.819836 | U63: 3953.685443 | V63: 321.2389078 | W63: 1570.104515 | X63: 100 | Y63: 1.722700502 | Z63: 2.518103353 | AA63: 27.04819836 | AB63: 39.53685443 | AC63: 12.48865607 | AD63: 20.45971493 | AE63: 79.54028507
H64: 0.01983046939 | I64: 0.5215417062 | J64: 59 | K64: 0.3004459779 | L64: 12.60770853 | M64: 1003.740056 | N64: 1027.147574 | O64: 10.79980992 | P64: 23.40751845 | R64: 59 | S64: 1233.355114 | T64: 1143.551909 | U64: 2376.907023 | V64: 371.0580031 | W64: 1604.413117 | X64: 100 | Y64: 0.712754026 | Z64: 1.481480672 | AA64: 11.43551909 | AB64: 23.76907023 | AC64: 12.33355114 | AD64: 23.12733542 | AE64: 76.87266458
H65: 0.05190535357 | I65: 0.8545785537 | J65: 60 | K65: 0.7995141556 | L65: 14.27289277 | M65: 1004.040502 | N65: 1041.420467 | O65: 23.10707247 | P65: 37.37996524 | R65: 60 | S65: 1254.007285 | T65: 1613.862275 | U65: 2867.869561 | V65: 321.7879682 | W65: 1575.795254 | X65: 100 | Y65: 1.02415734 | Z65: 1.819950627 | AA65: 16.13862275 | AB65: 28.67869561 | AC65: 12.54007285 | AD65: 20.42067125 | AE65: 79.57932875
H66: 0.1299601519 | I66: 0.4868608951 | J66: 61 | K66: 2.088243989 | L66: 12.43430448 | M66: 1004.840016 | N66: 1053.854771 | O66: 36.58045108 | P66: 49.01475556 | R66: 61 | S66: 1270.403218 | T66: 3181.031456 | U66: 4451.434674 | V66: 234.4497252 | W66: 1504.852943 | X66: 100 | Y66: 2.113848712 | Z66: 2.95805294 | AA66: 31.81031456 | AB66: 44.51434674 | AC66: 12.70403218 | AD66: 15.57957714 | AE66: 84.42042286
H67: 0.6270516541 | I67: 0.03849476871 | J67: 62 | K67: 14.79473028 | L67: 10.19247384 | M67: 1006.92826 | N67: 1064.047245 | O67: 46.92651157 | P67: 57.11898541 | R67: 62 | S67: 1229.164791 | T67: 1409.935927 | U67: 2639.100718 | V67: 380.5294496 | W67: 1609.694241 | X67: 100 | Y67: 0.8759029456 | Z67: 1.639504355 | AA67: 14.09935927 | AB67: 26.39100718 | AC67: 12.29164791 | AD67: 23.63985905 | AE67: 76.36014095
H68: 0.7906005994 | I68: 0.1609202597 | J68: 63 | K68: 23.45267764 | L68: 10.8046013 | M68: 1021.72299 | N68: 1074.851846 | O68: 42.32425513 | P68: 53.12885643 | R68: 63 | S68: 1240.170063 | T68: 791.6819343 | U68: 2031.851998 | V68: 503.4499298 | W68: 1743.619993 | X68: 100 | Y68: 0.4540449969 | Z68: 1.165306664 | AA68: 7.916819343 | AB68: 20.31851998 | AC68: 12.40170063 | AD68: 28.87383328 | AE68: 71.12616672
H69: 0.297030925 | I69: 0.4715404125 | J69: 64 | K69: 5.286635672 | L69: 12.35770206 | M69: 1045.175668 | N69: 1087.209548 | O69: 29.67617879 | P69: 42.03388085 | R69: 64 | S69: 1261.989186 | T69: 948.3879271 | U69: 2210.377113 | V69: 434.6531342 | W69: 1696.642321 | X69: 100 | Y69: 0.5589792943 | Z69: 1.302794989 | AA69: 9.483879271 | AB69: 22.10377113 | AC69: 12.61989186 | AD69: 25.61843053 | AE69: 74.38156947
H70: 0.8652364513 | I70: 0.263867223 | J70: 65 | K70: =-$D$6*LN(1-H70) -> 30.06350291 | L70: 11.31933611 | M70: 1050.462303 | N70: 1098.528885 | O70: 36.74724518 | P70: 48.0665813 | R70: 65 | S70: 1246.889272 | T70: 1364.614351 | U70: 2611.503623 | V70: 410.9989795 | W70: 1657.888251 | X70: 100 | Y70: 0.8231039395 | Z70: 1.575198823 | AA70: 13.64614351 | AB70: 26.11503623 | AC70: 12.46889272 | AD70: 24.79051161 | AE70: 75.20948839
H71: 0.8198846087 | I71: 0.534303455 | J71: 66 | K71: 25.71236356 | L71: 12.67151727 | M71: 1080.525806 | N71: 1111.200402 | O71: 18.00307838 | P71: 30.67459566 | R71: 66 | S71: 1272.049641 | T71: 4824.215974 | U71: 6096.265615 | V71: 94.62425443 | W71: 1366.673895 | X71: 100 | Y71: 3.529895457 | Z71: 4.460658564 | AA71: 48.24215974 | AB71: 60.96265615 | AC71: 12.72049641 | AD71: 6.923689313 | AE71: 93.07631069
H72: 0.4946361275 | I72: 0.8690176297 | J72: 67 | K72: 10.23714854 | L72: 14.34508815 | M72: 1106.23817 | N72: 1125.54549 | O72: 4.962232103 | P72: 19.30732025 | R72: =+R71+1 -> 67 | S72: 1254.829745 | T72: 1788.876842 | U72: 3043.706587 | V72: 340.2758456 | W72: 1595.10559 | X72: 100 | Y72: 1.121478636 | Z72: 1.90815367 | AA72: 17.88876842 | AB72: 30.43706587 | AC72: 12.54829745 | AD72: 21.33249658 | AE72: 78.66750342
H73: 0.7276217925 | I73: 0.7043938293 | J73: 68 | K73: 19.50845565 | L73: 13.52196915 | M73: 1116.475318 | N73: 1139.067459 | O73: 9.070171707 | P73: 22.59214085 | R73: 68 | S73: 1253.763502 | T73: 1021.393349 | U73: 2275.156851 | V73: 566.6802541 | W73: 1820.443756 | X73: 100 | Y73: 0.5610683359 | Z73: 1.249781457 | AA73: 10.21393349 | AB73: 22.75156851 | AC73: 12.53763502 | AD73: 31.12868784 | AE73: 68.87131216
H74: 0.01511560443 | I74: 0.9005806824 | J74: 69 | K74: 0.2284651441 | L74: 14.50290341 | M74: 1135.983774 | N74: 1153.570363 | O74: 3.083685207 | P74: 17.58658862 | R74: 69 | S74: 1234.191961 | T74: 1543.767895 | U74: 2777.959855 | V74: 312.9582417 | W74: 1547.150202 | X74: 100 | Y74: 0.9978138468 | Z74: 1.795533395 | AA74: 15.43767895 | AB74: 27.77959855 | AC74: 12.34191961 | AD74: 20.22804516 | AE74: 79.77195484
H75: 0.02742265147 | I75: 0.3993942916 | J75: 70 | K75: 0.4170850634 | L75: 11.99697146 | M75: 1136.212239 | N75: 1165.567334 | O75: 17.35812348 | P75: 29.35509493 | R75: 70 | S75: 1274.121624 | T75: 2147.611896 | U75: 3421.73352 | V75: 386.2220027 | W75: 1660.343627 | X75: 100 | Y75: 1.293474351 | Z75: 2.060858647 | AA75: 21.47611896 | AB75: 34.2173352 | AC75: 12.74121624 | AD75: 23.26157046 | AE75: 76.73842954
H76: 0.5391635842 | I76: 0.7143897625 | J76: 71 | K76: 11.62068218 | L76: 13.57194881 | M76: 1136.629324 | N76: 1179.139283 | O76: 28.93800987 | P76: 42.50995868 | R76: 71 | S76: 1259.8579 | T76: 3360.407908 | U76: 4620.265808 | V76: 275.3637464 | W76: 1535.221646 | X76: 100 | Y76: 2.188874757 | Z76: 3.009510594 | AA76: 33.60407908 | AB76: 46.20265808 | AC76: 12.598579 | AD76: 17.93641635 | AE76: 82.06358365
H77: 0.1713375678 | I77: 0.9791644846 | J77: 72 | K77: 2.819136083 | L77: 14.89582242 | M77: 1148.250006 | N77: 1194.035105 | O77: 30.8892765 | P77: 45.78509893 | R77: 72 | S77: 1248.790237 | T77: 2184.502686 | U77: 3433.292923 | V77: 360.5412452 | W77: 1609.331482 | X77: 100 | Y77: 1.357397597 | Z77: 2.133365911 | AA77: 21.84502686 | AB77: 34.33292923 | AC77: 12.48790237 | AD77: 22.4031686 | AE77: 77.5968314
H78: 0.8496016716 | I78: 0.4955261858 | J78: 73 | K78: 28.41701973 | L78: 12.47763093 | M78: 1151.069142 | N78: 1206.512736 | O78: 42.96596284 | P78: 55.44359377 | R78: 73 | S78: 1243.848026 | T78: 2368.804178 | U78: 3612.652204 | V78: 287.7671597 | W78: 1531.615185 | X78: 100 | Y78: 1.54660531 | Z78: 2.358720544 | AA78: 23.68804178 | AB78: 36.12652204 | AC78: 12.43848026 | AD78: 18.78847654 | AE78: 81.21152346
H79: 0.7786727335 | I79: 0.1486856487 | J79: 74 | K79: 22.62169243 | L79: 10.74342824 | M79: 1179.486162 | N79: 1217.256164 | O79: 27.02657404 | P79: 37.77000228 | R79: 74 | S79: 1252.86116 | T79: 7320.508263 | U79: 8573.369424 | V79: 0 | W79: 1252.86116 | X79: 100 | Y79: 5.843032328 | Z79: 6.843032328 | AA79: 73.20508263 | AB79: 85.73369424 | AC79: 12.5286116 | AD79: 0 | AE79: 100
H80: 0.09409619418 | I80: 0.6342703428 | J80: 75 | K80: 1.482332298 | L80: 13.17135171 | M80: 1202.107855 | N80: 1230.427516 | O80: 15.14830985 | P80: 28.31966157 | R80: 75 | S80: 1260.270486 | T80: 2682.554545 | U80: 3942.82503 | V80: 187.629785 | W80: 1447.900271 | X80: 100 | Y80: 1.852720521 | Z80: 2.723133015 | AA80: 26.82554545 | AB80: 39.4282503 | AC80: 12.60270486 | AD80: 12.95875059 | AE80: 87.04124941
H81: 0.5384987936 | I81: 0.2160011434 | J81: 76 | K81: 11.59905916 | L81: 11.08000572 | M81: 1203.590187 | N81: 1241.507522 | O81: 26.83732927 | P81: 37.91733498 | R81: 76 | S81: 1254.831025 | T81: 1358.411781 | U81: 2613.242806 | V81: 536.5925011 | W81: 1791.423526 | X81: 100 | Y81: 0.7582862242 | Z81: 1.458752087 | AA81: 13.58411781 | AB81: 26.13242806 | AC81: 12.54831025 | AD81: 29.95341377 | AE81: 70.04658623
H82: 0.1008302971 | I82: 0.5148717867 | J82: 77 | K82: 1.594252408 | L82: 12.57435893 | M82: 1215.189246 | N82: 1254.081881 | O82: 26.31827582 | P82: 38.89263475 | R82: 77 | S82: 1258.660553 | T82: 3888.531572 | U82: 5147.192125 | V82: 268.7592713 | W82: 1527.419824 | X82: 100 | Y82: 2.545817142 | Z82: 3.369860757 | AA82: 38.88531572 | AB82: 51.47192125 | AC82: 12.58660553 | AD82: 17.59563855 | AE82: 82.40436145
H83: 0.866388449 | I83: 0.3421244739 | J83: 78 | K83: 30.19227843 | L83: 11.71062237 | M83: 1216.783498 | N83: 1265.792503 | O83: 37.29838235 | P83: 49.00900472 | R83: 78 | S83: 1232.626981 | T83: 4612.442429 | U83: 5845.069409 | V83: 83.32486271 | W83: 1315.951844 | X83: 100 | Y83: 3.505023722 | Z83: 4.44170464 | AA83: 46.12442429 | AB83: 58.45069409 | AC83: 12.32626981 | AD83: 6.331908202 | AE83: 93.6680918
H84: 0.003724616042 | I84: 0.02140175358 | J84: 79 | K84: 0.05597354544 | L84: 10.10700877 | M84: 1246.975777 | N84: 1275.899512 | O84: 18.81672629 | P84: 28.92373505 | R84: 79 | S84: 1263.164152 | T84: 2212.727487 | U84: 3475.891638 | V84: 106.9428176 | W84: 1370.106969 | X84: 100 | Y84: 1.615003453 | Z84: 2.536949097 | AA84: 22.12727487 | AB84: 34.75891638 | AC84: 12.63164152 | AD84: 7.805435636 | AE84: 92.19456436
H85: 0.006217616857 | I85: 0.7315268031 | J85: 80 | K85: 0.09355540101 | L85: 13.65763402 | M85: 1247.03175 | N85: 1289.557146 | O85: 28.86776151 | P85: 42.52539552 | R85: 80 | S85: 1239.962335 | T85: 3949.963976 | U85: 5189.926311 | V85: 66.66122072 | W85: 1306.623556 | X85: 100 | Y85: 3.023031352 | Z85: 3.972013429 | AA85: 39.49963976 | AB85: 51.89926311 | AC85: 12.39962335 | AD85: 5.101792357 | AE85: 94.89820764
H86: 0.738157417 | I86: 0.9839860512 | J86: 81 | K86: 20.10017676 | L86: 14.91993026 | M86: 1247.125306 | N86: 1304.477076 | O86: 42.43184012 | P86: 57.35177038 | R86: 81 | S86: 1252.732657 | T86: 1881.36406 | U86: 3134.096717 | V86: 505.3261738 | W86: 1758.058831 | X86: 100 | Y86: 1.070137146 | Z86: 1.78270298 | AA86: 18.8136406 | AB86: 31.34096717 | AC86: 12.52732657 | AD86: 28.7434166 | AE86: 71.2565834
H87: 0.1916203885 | I87: 0.8049212036 | J87: 82 | K87: 3.190852718 | L87: 14.02460602 | M87: 1267.225483 | N87: 1318.501682 | O87: 37.25159362 | P87: 51.27619964 | R87: 82 | S87: 1254.277741 | T87: 4462.828903 | U87: 5717.106644 | V87: 267.385508 | W87: 1521.663249 | X87: 100 | Y87: 2.932862382 | Z87: 3.757143143 | AA87: 44.62828903 | AB87: 57.17106644 | AC87: 12.54277741 | AD87: 17.57192389 | AE87: 82.42807611
H88: 0.03637930438 | I88: 0.06210357277 | J88: 83 | K88: 0.5558629661 | L88: 10.31051786 | M88: 1270.416335 | N88: 1328.8122 | O88: 48.08534692 | P88: 58.39586478 | R88: 83 | S88: 1243.128562 | T88: 1469.497837 | U88: 2712.626399 | V88: 363.2310361 | W88: 1606.359598 | X88: 100 | Y88: 0.9148000479 | Z88: 1.688679423 | AA88: 14.69497837 | AB88: 27.12626399 | AC88: 12.43128562 | AD88: 22.61206249 | AE88: 77.38793751
H89: 0.2206320153 | I89: 0.3971476187 | J89: 84 | K89: 3.739079457 | L89: 11.98573809 | M89: 1270.972198 | N89: 1340.797938 | O89: 57.84000182 | P89: 69.82573991 | R89: 84 | S89: 1257.884621 | T89: 4407.672403 | U89: 5665.557024 | V89: 146.5297063 | W89: 1404.414327 | X89: 100 | Y89: 3.138441639 | Z89: 4.034106541 | AA89: 44.07672403 | AB89: 56.65557024 | AC89: 12.57884621 | AD89: 10.43350979 | AE89: 89.56649021
H90: 0.5475609656 | I90: 0.8960879105 | J90: 85 | K90: 11.89653383 | L90: 14.48043955 | M90: 1274.711278 | N90: 1355.278378 | O90: 66.08666045 | P90: 80.56710001 | R90: 85 | S90: 1238.852693 | T90: 2786.000173 | U90: 4024.852866 | V90: 176.7680894 | W90: 1415.620782 | X90: 100 | Y90: 1.968041307 | Z90: 2.843171644 | AA90: 27.86000173 | AB90: 40.24852866 | AC90: 12.38852693 | AD90: 12.48696626 | AE90: 87.51303374
H91: 0.499080757 | I91: 0.6171040247 | J91: 86 | K91: 10.36965574 | L91: 13.08552012 | M91: 1286.607812 | N91: 1368.363898 | O91: 68.67056617 | P91: 81.7560863 | R91: 86 | S91: 1265.963632 | T91: 1925.498236 | U91: 3191.461868 | V91: 457.3428042 | W91: 1723.306436 | X91: 100 | Y91: 1.117327827 | Z91: 1.851941014 | AA91: 19.25498236 | AB91: 31.91461868 | AC91: 12.65963632 | AD91: 26.53868137 | AE91: 73.46131863
H92: 0.735491771 | I92: 0.7489867046 | J92: 87 | K92: 19.94824375 | L92: 13.74493352 | M92: 1296.977467 | N92: 1382.108831 | O92: 71.38643056 | P92: 85.13136408 | R92: 87 | S92: 1242.036567 | T92: 1525.471023 | U92: 2767.50759 | V92: 363.3986309 | W92: 1605.435198 | X92: 100 | Y92: 0.95019159 | Z92: 1.723836374 | AA92: 15.25471023 | AB92: 27.6750759 | AC92: 12.42036567 | AD92: 22.63552159 | AE92: 77.36447841
H93: 0.8507707472 | I93: 0.2161764678 | J93: 88 | K93: 28.53407319 | L93: 11.08088234 | M93: 1316.925711 | N93: 1393.189714 | O93: 65.18312033 | P93: 76.26400267 | R93: 88 | S93: 1248.28932 | T93: 766.62131 | U93: 2014.91063 | V93: 445.6079462 | W93: 1693.897266 | X93: 100 | Y93: 0.4525783974 | Z93: 1.189511708 | AA93: 7.6662131 | AB93: 20.1491063 | AC93: 12.4828932 | AD93: 26.30666896 | AE93: 73.69333104
H94: 0.5941745479 | I94: 0.02269593663 | J94: 89 | K94: 13.52748199 | L94: 10.11347968 | M94: 1345.459784 | N94: 1403.303193 | O94: 47.72992948 | P94: 57.84340916 | R94: 89 | S94: 1268.194699 | T94: 1325.273962 | U94: 2593.468661 | V94: 328.5684159 | W94: 1596.763115 | X94: 100 | Y94: 0.8299753107 | Z94: 1.624203764 | AA94: 13.25273962 | AB94: 25.93468661 | AC94: 12.68194699 | AD94: 20.57715468 | AE94: 79.42284532
H95: 0.170652867 | I95: 0.9916746798 | J95: 90 | K95: 2.806747117 | L95: 14.9583734 | M95: 1358.987266 | N95: 1418.261567 | O95: 44.31592717 | P95: 59.27430057 | R95: 90 | S95: 1248.412914 | T95: 3159.608328 | U95: 4408.021243 | V95: 190.8960404 | W95: 1439.308955 | X95: 100 | Y95: 2.195225923 | Z95: 3.06259558 | AA95: 31.59608328 | AB95: 44.08021243 | AC95: 12.48412914 | AD95: 13.26303431 | AE95: 86.73696569
H96: 0.8517729457 | I96: 0.7585854506 | J96: 91 | K96: 28.63515046 | L96: 13.79292725 | M96: 1361.794013 | N96: 1432.054494 | O96: 56.46755345 | P96: 70.26048071 | R96: 91 | S96: 1259.495876 | T96: 1351.27553 | U96: 2610.771407 | V96: 240.5927713 | W96: 1500.088647 | X96: 100 | Y96: 0.9007971181 | Z96: 1.740411416 | AA96: 13.5127553 | AB96: 26.10771407 | AC96: 12.59495876 | AD96: 16.03857023 | AE96: 83.96142977
H97: 0.3432021821 | I97: 0.7642313713 | J97: 92 | K97: 6.305685648 | L97: 13.82115686 | M97: 1390.429164 | N97: 1445.875651 | O97: 41.62533025 | P97: 55.44648711 | R97: 92 | S97: 1269.605824 | T97: 1289.575498 | U97: 2559.181322 | V97: 297.1173814 | W97: 1566.723205 | X97: 100 | Y97: 0.8231035922 | Z97: 1.633461044 | AA97: 12.89575498 | AB97: 25.59181322 | AC97: 12.69605824 | AD97: 18.96425485 | AE97: 81.03574515
H98: 0.6511978708 | I98: 0.7435319095 | J98: 93 | K98: 15.79875724 | L98: 13.71765955 | M98: 1396.734849 | N98: 1459.59331 | O98: 49.14080146 | P98: 62.85846101 | R98: 93 | S98: 1234.566492 | T98: 4435.061231 | U98: 5669.627723 | V98: 392.4330422 | W98: 1626.999534 | X98: 100 | Y98: 2.72591426 | Z98: 3.484713797 | AA98: 44.35061231 | AB98: 56.69627723 | AC98: 12.34566492 | AD98: 24.12004638 | AE98: 75.87995362
H99: 0.5400476591 | I99: 0.3265888181 | J99: 94 | K99: 11.64948602 | L99: 11.63294409 | M99: 1412.533607 | N99: 1471.226255 | O99: 47.05970377 | P99: 58.69264786 | R99: 94 | S99: 1267.509803 | T99: 1555.796902 | U99: 2823.306705 | V99: 236.3076868 | W99: 1503.81749 | X99: 100 | Y99: 1.034564974 | Z99: 1.877426432 | AA99: 15.55796902 | AB99: 28.23306705 | AC99: 12.67509803 | AD99: 15.71385413 | AE99: 84.28614587
H100: 0.4478835341 | I100: 0.8575864294 | J100: 95 | K100: 8.909943991 | L100: 14.28793215 | M100: 1424.183093 | N100: 1485.514187 | O100: 47.04316184 | P100: 61.33109398 | R100: 95 | S100: 1259.951606 | T100: 2071.617278 | U100: 3331.568884 | V100: 137.7309706 | W100: 1397.682576 | X100: 100 | Y100: 1.482180084 | Z100: 2.383637702 | AA100: 20.71617278 | AB100: 33.31568884 | AC100: 12.59951606 | AD100: 9.854238218 | AE100: 90.14576178
H101: 0.8877673779 | I101: 0.1015523403 | J101: 96 | K101: 32.80772368 | L101: 10.5077617 | M101: 1433.093037 | N101: 1496.021948 | O101: 52.42114999 | P101: 62.92891169 | R101: 96 | S101: 1254.995576 | T101: 3482.364559 | U101: 4737.360135 | V101: 132.2583345 | W101: 1387.253911 | X101: 100 | Y101: 2.510257519 | Z101: 3.414919287 | AA101: 34.82364559 | AB101: 47.37360135 | AC101: 12.54995576 | AD101: 9.533823151 | AE101: 90.46617685
H102: 0.7991656421 | I102: 0.7892516718 | J102: 97 | K102: 24.07912201 | L102: 13.94625836 | M102: 1465.90076 | N102: 1509.968207 | O102: 30.12118801 | P102: 44.06744637 | R102: 97 | S102: 1232.434669 | T102: 1512.552048 | U102: 2744.986717 | V102: 435.6959313 | W102: 1668.130601 | X102: 100 | Y102: 0.9067347889 | Z102: 1.645546647 | AA102: 15.12552048 | AB102: 27.44986717 | AC102: 12.32434669 | AD102: 26.11881414 | AE102: 73.88118586
H103: 0.06185147308 | I103: 0.5690030696 | J103: 98 | K103: 0.9577049738 | L103: 12.84501535 | M103: 1489.979882 | N103: 1522.813222 | O103: 19.98832436 | P103: 32.83333971 | R103: 98 | S103: 1259.112937 | T103: 1355.94079 | U103: 2615.053727 | V103: 377.7196153 | W103: 1636.832552 | X103: 100 | Y103: 0.8283930986 | Z103: 1.597630572 | AA103: 13.5594079 | AB103: 26.15053727 | AC103: 12.59112937 | AD103: 23.07625265 | AE103: 76.92374735
H104: 0.9189792998 | I104: 0.5920269491 | J104: 99 | K104: 37.69575899 | L104: 12.96013475 | M104: 1490.937587 | N104: 1535.773357 | O104: 31.87563474 | P104: 44.83576948 | R104: 99 | S104: 1231.092347 | T104: 1792.220846 | U104: 3023.313193 | V104: 301.7580228 | W104: 1532.85037 | X104: 100 | Y104: 1.169207955 | Z104: 1.972347238 | AA104: 17.92220846 | AB104: 30.23313193 | AC104: 12.31092347 | AD104: 19.68607169 | AE104: 80.31392831
H105: 0.05180145701 | I105: 0.2393661101 | J105: 100 | K105: 0.7978704768 | L105: 11.19683055 | M105: 1528.633346 | N105: 1546.970187 | O105: 7.140010495 | P105: 18.33684105 | R105: 100 | S105: 1245.876073 | T105: 1031.214856 | U105: 2277.090928 | V105: 631.0261991 | W105: 1876.902272 | X105: 100 | Y105: 0.5494238413 | Z105: 1.213217631 | AA105: 10.31214856 | AB105: 22.77090928 | AC105: 12.45876073 | AD105: 33.62062099 | AE105: 66.37937901

Sheet Sheet3
B1: Exemplo 5 - Simulação
B3: Chegada Exponencial de média | E3: 15
B4: Serviço Uniforme de min - máx | C4: min-max | E4: 10 | F4: 15
B6: Nº Clientes | C6: 10
G7: Próx. | I7: Próx. | J7: Próxima | K7: Próxima | L7: Próximo | M7: Tempo | O7: NPA | P7: NPA | Q7: Nº | R7: Intervalo | S7: Tempo | T7: Tempo | U7: Tempo | V7: Tempo | W7: Tempo
B8: Cliente Ch. | C8: Cliente Nº | D8: T. Simul. | E8: Nº Clientes | F8: NPA Ch | G8: Int. CH | H8: NPA Par | I8: T. Serv. | J8: Chegada | K8: Partida | L8: Acontec. | M8: Espera | O8: Chegadas | P8: Seviço | Q8: Clientes | R8: Chegadas | S8: Serviço | T8: Chegada | U8: Partida | V8: Fila | W8: Sistema
B9: 1 | C9: =SUM($B$9:B9) -> 1 | D9: 0 | E9: 1 | F9: =RAND() -> 0.5972793487 | G9: =-$E$3*LN(F9) -> 7.730555315 | H9: =RAND() -> 0.1609333672 | I9: =$E$4+H9*($F$4-$E$4) -> 10.80466684 | J9: =+D9+G9 -> 7.730555315 | K9: =+D9+I9 -> 10.80466684 | L9: =IF(J9<K9,"chegada","partida") -> chegada | M9: =IF(E9<2,0,(E9-1)*(D10-D9)) -> 0 | O9: =RAND() -> 0.9368752293 | P9: =RAND() -> 0.5235670955 | Q9: 1 | R9: =-$E$3*LN(O9) -> 0.9780774804 | S9: =$E$4+P9*($F$4-$E$4) -> 12.61783548 | T9: 0 | U9: =+T9+S9 -> 12.61783548 | V9: =+U9-T9-S9 -> 0 | W9: =+U9-T9 -> 12.61783548
B10: =IF(SUM(E9:L9)=0,0,IF(L9="partida",0,1)) -> 1 | C10: =SUM($B$9:B10) -> 2 | D10: =IF(L9="partida",K9,J9) -> 7.730555315 | E10: =IF(L9="partida",E9-1,E9+1) -> 2 | F10: =IF(L9="partida", 0,RAND()) -> 0.8466232251 | G10: =IF(F10=0,0,-$E$3*LN(F10)) -> 2.497492769 | H10: =IF(L9="partida",IF(E10=0,0,RAND()),IF(E10>1,0,RAND())) -> 0 | I10: =IF(H10=0,0,$E$4+H10*($F$4-$E$4)) -> 0 | J10: =IF(C10=$C$6,0,+J9+G10) -> 10.22804808 | K10: =IF(D10<K9,K9,IF(I10=0,0,D10+I10)) -> 10.80466684 | L10: =IF(C10<$C$6,IF(C10=$C$6,"partida",IF(K10=0,"chegada",IF(J10<K10,"chegada","partida"))),IF(E10=0,0,IF(C10=$C$6,"partida",IF(K10=0,"chegada",IF(J10<K10,"chegada","partida"))))) -> chegada | M10: 2.497492769 | O10: =RAND() -> 0.7811258972 | P10: =RAND() -> 0.5752729752 | Q10: =+Q9+1 -> 2 | R10: =-$E$3*LN(O10) -> 3.705284133 | S10: =$E$4+P10*($F$4-$E$4) -> 12.87636488 | T10: =+T9+R9 -> 0.9780774804 | U10: =MAX(T10,U9)+S10 -> 25.49420035 | V10: 11.639758 | W10: 24.51612287
B11: 1 | C11: =SUM($B$9:B11) -> 3 | D11: 10.22804808 | E11: =IF(L10="partida",E10-1,E10+1) -> 3 | F11: =IF(L10="partida", 0,RAND()) -> 0.4625677721 | G11: 11.56443298 | H11: 0 | I11: 0 | J11: 21.79248106 | K11: 10.80466684 | L11: partida | M11: 1.153237504 | O11: =RAND() -> 0.2303695642 | P11: 0.859455417 | Q11: 3 | R11: 22.02105688 | S11: 14.29727709 | T11: =+T10+R10 -> 4.683361613 | U11: =MAX(T11,U10)+S11 -> 39.79147744 | V11: 20.81083874 | W11: 35.10811583
B12: 0 | C12: =SUM($B$9:B12) -> 3 | D12: 10.80466684 | E12: =IF(L11="partida",E11-1,E11+1) -> 2 | F12: =IF(L11="partida", 0,RAND()) -> 0 | G12: 0 | H12: 0.8001388004 | I12: 14.000694 | J12: 21.79248106 | K12: 24.80536084 | L12: chegada | M12: 10.98781423 | O12: 0.1942156532 | P12: 0.6029688094 | Q12: 4 | R12: 24.58179184 | S12: 13.01484405 | T12: 26.70441849 | U12: 52.80632149 | V12: 13.08705895 | W12: 26.10190299
B13: 1 | C13: =SUM($B$9:B13) -> 4 | D13: 21.79248106 | E13: =IF(L12="partida",E12-1,E12+1) -> 3 | F13: =IF(L12="partida", 0,RAND()) -> 0.6318605669 | G13: 6.886297967 | H13: 0 | I13: 0 | J13: 28.67877903 | K13: 24.80536084 | L13: partida | M13: 6.025759551 | O13: 0.5620169877 | P13: 0.7633585646 | Q13: 5 | R13: 8.643348036 | S13: 13.81679282 | T13: 51.28621033 | U13: 66.62311431 | V13: 1.520111153 | W13: 15.33690398
B14: 0 | C14: =SUM($B$9:B14) -> 4 | D14: 24.80536084 | E14: =IF(L13="partida",E13-1,E13+1) -> 2 | F14: =IF(L13="partida", 0,RAND()) -> 0 | G14: 0 | H14: 0.5506554234 | I14: 12.75327712 | J14: 28.67877903 | K14: 37.55863795 | L14: chegada | M14: 3.873418191 | O14: 0.714876549 | P14: 0.08030554667 | Q14: 6 | R14: 5.034681148 | S14: 10.40152773 | T14: 59.92955837 | U14: 77.02464204 | V14: 6.69355594 | W14: 17.09508367
B15: 1 | C15: =SUM($B$9:B15) -> 5 | D15: 28.67877903 | E15: =IF(L14="partida",E14-1,E14+B15) -> 3 | F15: =IF(C15=$C$6,0, RAND()) -> 0.162452929 | G15: 27.2605048 | H15: 0 | I15: 0 | J15: 55.93928383 | K15: 37.55863795 | L15: partida | M15: 17.75971785 | O15: 0.08252859156 | P15: 0.5361053491 | Q15: 7 | R15: 37.41915722 | S15: 12.68052675 | T15: 64.96423952 | U15: 89.70516879 | V15: 12.06040252 | W15: 24.74092927
B16: 0 | C16: =SUM($B$9:B16) -> 5 | D16: 37.55863795 | E16: 2 | F16: 0.2257140319 | G16: 22.3272964 | H16: 0.3377042996 | I16: 11.6885215 | J16: 78.26658023 | K16: 49.24715945 | L16: partida | M16: 11.6885215 | O16: 0.2647373558 | P16: 0.1139086822 | Q16: 8 | R16: 19.93525582 | S16: 10.56954341 | T16: 102.3833967 | U16: 112.9529401 | V16: 0 | W16: 10.56954341
B17: 0 | C17: =SUM($B$9:B17) -> 5 | D17: 49.24715945 | E17: 1 | F17: 0.7423124617 | G17: 4.469775255 | H17: 0.9399647411 | I17: 14.69982371 | J17: 82.73635548 | K17: 63.94698316 | L17: partida | M17: 0 | O17: 0.4853139484 | P17: 0.594959148 | Q17: 9 | R17: 10.84438922 | S17: 12.97479574 | T17: 122.3186526 | U17: 135.2934483 | V17: 0 | W17: 12.97479574
B18: 0 | C18: =SUM($B$9:B18) -> 5 | D18: 63.94698316 | E18: 0 | F18: 0.357114558 | G18: 15.44547987 | H18: =IF(L17=0,0,IF(L17="partida",IF(E18=0,0,RAND()),IF(E18>1,0,RAND()))) -> 0 | I18: 0 | J18: 98.18183535 | K18: 0 | L18: chegada | M18: 0 | O18: 0.3218998033 | P18: 0.2499952836 | Q18: 10 | R18: 17.00272428 | S18: 11.24997642 | T18: 133.1630418 | U18: 146.5434247 | V18: 2.130406523 | W18: 13.38038294
B19: 1 | C19: =SUM($B$9:B19) -> 6 | D19: 98.18183535 | E19: 1 | F19: 0.1963479992 | G19: 24.41800032 | H19: 0.8903850049 | I19: 14.45192502 | J19: 122.5998357 | K19: 112.6337604 | L19: partida | M19: 0
B20: 0 | C20: =SUM($B$9:B20) -> 6 | D20: 112.6337604 | E20: 0 | F20: 0.2890833497 | G20: 18.61560338 | H20: 0 | I20: 0 | J20: 141.215439 | K20: 0 | L20: chegada | M20: 0
B21: 1 | C21: =SUM($B$9:B21) -> 7 | D21: 141.215439 | E21: 1 | F21: 0.7194859352 | G21: 4.938274514 | H21: 0.2822268962 | I21: 11.41113448 | J21: 146.1537136 | K21: 152.6265735 | L21: chegada | M21: 0
B22: 1 | C22: =SUM($B$9:B22) -> 8 | D22: 146.1537136 | E22: 2 | F22: 0.9788742598 | G22: 0.320281231 | H22: 0 | I22: 0 | J22: 146.4739948 | K22: 152.6265735 | L22: chegada | M22: 0.320281231
B23: 1 | C23: =SUM($B$9:B23) -> 9 | D23: 146.4739948 | E23: 3 | F23: 0.9961341938 | G23: 0.05809946663 | H23: 0 | I23: 0 | J23: 146.5320943 | K23: 152.6265735 | L23: chegada | M23: 0.1161989333
B24: 1 | C24: =SUM($B$9:B24) -> 10 | D24: 146.5320943 | E24: 4 | F24: 0 | G24: 0 | H24: 0 | I24: 0 | J24: 0 | K24: 152.6265735 | L24: partida | M24: 18.28343781
B25: 0 | C25: =SUM($B$9:B25) -> 10 | D25: 152.6265735 | E25: 3 | F25: 0 | G25: 0 | H25: 0.04680634123 | I25: 10.23403171 | J25: 0 | K25: 162.8606052 | L25: partida | M25: 20.46806341
B26: 0 | C26: =SUM($B$9:B26) -> 10 | D26: 162.8606052 | E26: 2 | F26: 0 | G26: 0 | H26: 0.6936396255 | I26: 13.46819813 | J26: 0 | K26: 176.3288034 | L26: partida | M26: 13.46819813
B27: 0 | C27: =SUM($B$9:B27) -> 10 | D27: 176.3288034 | E27: 1 | F27: 0 | G27: 0 | H27: 0.01631086829 | I27: 10.08155434 | J27: 0 | K27: 186.4103577 | L27: partida | M27: 0
B28: 0 | C28: =SUM($B$9:B28) -> 10 | D28: 186.4103577 | E28: 0 | F28: 0 | G28: 0 | H28: 0 | I28: 0 | J28: 0 | K28: 0 | L28: 0 | M28: 0
B29: 0 | C29: =SUM($B$9:B29) -> 10 | D29: 0 | E29: 0 | F29: 0 | G29: 0 | H29: 0 | I29: 0 | J29: 0 | K29: 0 | L29: 0 | M29: 0
B30: 0 | C30: =SUM($B$9:B30) -> 10 | D30: 0 | E30: 0 | F30: 0 | G30: 0 | H30: 0 | I30: 0 | J30: 0 | K30: 0 | L30: 0 | M30: 0
B31: 0 | C31: =SUM($B$9:B31) -> 10 | D31: 0 | E31: 0 | F31: 0 | G31: 0 | H31: 0 | I31: 0 | J31: 0 | K31: 0 | L31: 0 | M31: 0
B32: 0 | C32: =SUM($B$9:B32) -> 10 | D32: 0 | E32: 0 | F32: 0 | G32: 0 | H32: 0 | I32: 0 | J32: 0 | K32: 0 | L32: 0 | M32: 0
B33: 0 | C33: =SUM($B$9:B33) -> 10 | D33: 0 | E33: 0 | F33: 0 | G33: =-15*LN(1-F33) -> 0 | H33: 0 | I33: 0 | J33: 0 | K33: 0 | L33: 0 | M33: 0
E36: Medidas de Performance | R36: Medidas de Performance
C38: Tempo Total de Simulação | G38: =MAX(D9:D33) -> 186.4103577 | H38: minutos | P38: Tempo Total de Simulação | U38: =MAX(U9:U33) -> 146.5434247 | V38: minutos
C39: Tempo de Actividade (Serviço) | G39: =SUM(I9:I29) -> 123.5938268 | H39: " | P39: Tempo Total de Actividade (Serviço) | U39: =SUM(S9:S33) -> 124.4994844 | V39: "
C40: Tempo Total na Fila | G40: =SUM(M9:M29) -> 106.6421411 | H40: " | P40: Tempo Total na Fila | U40: =SUM(V9:V9:V33) -> 67.94213182 | V40: "
C41: Tempo no Sistema | G41: =+G40+G39 -> 230.2359679 | H41: " | P41: Tempo Total no Sistema | U41: =SUM(W9:W10:W33) -> 192.4416162 | V41: "
C42: Tempo de Inactividade | G42: =+G38-G39 -> 62.81653086 | H42: " | P42: Tempo Total de Inactividade | U42: =+U38-U39 -> 22.04394036 | V42: "
C44: Comprimento médio da Fila | G44: =+G40/D18 -> 1.667664929 | H44: clientes | P44: Compriento médio fila | U44: =+U40/U38 -> 0.4636313909 | V44: clientes
C45: Nº médio clientes no Sistema | G45: =+G41/D18 -> 3.600419544 | H45: " | P45: Nº médio Clientes no Sistema | U45: =+U41/U38 -> 1.313205397 | V45: "
C46: Tempo médio na Fila | G46: =+G40/MAX(C9:C33) -> 10.66421411 | H46: " | P46: Tempo médio na fila | U46: =+U40/MAX(Q9:Q33) -> 6.794213182 | V46: minutos
C47: Tempo médio no Sistema | G47: =+G41/MAX(C9:C33) -> 23.02359679 | H47: " | P47: Tempo médio no Sistema | U47: =+U41/MAX(Q9:Q33) -> 19.24416162 | V47: "
C49: % Utilização média do Serviço | G49: =+G39/G38*100 -> 66.30201688 | H49: % | P49: %Utilização do Sistema | U49: =+U39/U38*100 -> 84.95740058 | V49: %
C50: % Inactividade do Sistema | G50: =+G42/G38*100 -> 33.69798312 | H50: % | P50: % Inactividade do Sistema | U50: =+U42/U38*100 -> 15.04259942 | V50: %
